fUST/lending_fUST_20240412
["ID","MTS","AMOUNT","RATE_DAILY","PERIOD"]
[322189911,1712868632250,-300.0,0.000264,2]
[322189913,1712868632260,-300.0,0.000264,2]
[322189915,1712868632270,-2364.37402487,0.00026401,2]
[322189919,1712868632304,-902.43499995,0.00026401,2]
[322189993,1712868638260,-15684.7842951,0.00026401,2]
[322189994,1712868638279,-2.37725799,0.00027269,2]
[322189996,1712868638290,-284.61768547,0.00027269,2]
[322189999,1712868638299,-4028.22076144,0.00027394,2]
[322190058,1712868638823,-354.60827905,0.00027394,2]
[322190062,1712868638840,-1400.25605651,0.00027394,2]
[322190066,1712868638850,-340.89846798,0.00027395,2]
[322190068,1712868638859,-267.08067075,0.00027395,2]
[322190072,1712868638869,-703.07725515,0.00027395,2]
[322190074,1712868638878,-1213.728015,0.00027395,2]
[322190076,1712868638888,-211.40870572,0.00027395,2]
[322190078,1712868638898,-1308.15892502,0.00027396,2]
[322190079,1712868638907,-221.63830907,0.00027396,2]
[322190081,1712868638916,-490.67957045,0.00027396,2]
[322190083,1712868638925,-155.68204879,0.00027396,2]
[322190085,1712868638934,-500.0,0.00027396,2]
[322190087,1712868638943,-500.0,0.00027396,2]
[322190089,1712868638952,-200.0,0.00027396,2]
[322190091,1712868638961,-200.0,0.00027396,2]
[322190093,1712868638970,-500.0,0.00027397,2]
[322190095,1712868638982,-478.30476611,0.00027397,2]
[322190108,1712868639100,-21.69523389,0.00027397,2]
[322190110,1712868639109,-500.0,0.00027397,2]
[322190112,1712868639118,-694.55,0.00027397,2]
[322190114,1712868639127,-500.0,0.00027397,2]
[322190117,1712868639138,-500.0,0.00027397,2]
[322190118,1712868639147,-500.0,0.00027397,2]
[322190121,1712868639157,-500.0,0.00027397,2]
[322190123,1712868639166,-158.09608025,0.00027397,2]
[322190125,1712868639175,-500.0,0.00027397,2]
[322190126,1712868639185,-542.88744001,0.00027397,2]
[322190129,1712868639194,-500.0,0.00027397,2]
[322190131,1712868639204,-247.55776255,0.00027397,2]
[322190132,1712868639213,-500.0,0.00027397,2]
[322190135,1712868639222,-500.0,0.00027397,2]
[322190137,1712868639232,-500.0,0.00027397,2]
[322190139,1712868639241,-200.0,0.00027397,2]
[322190141,1712868639250,-500.0,0.00027397,2]
[322190143,1712868639259,-500.81267653,0.00027397,2]
[322190145,1712868639268,-500.0,0.00027397,2]
[322190147,1712868639278,-660.98,0.00027397,2]
[322190149,1712868639287,-1380.38,0.00027397,2]
[322190150,1712868639297,-500.0,0.00027397,2]
[322190152,1712868639306,-500.0,0.00027397,2]
[322190154,1712868639315,-500.0,0.00027397,2]
[322190157,1712868639325,-500.0,0.00027397,2]
[322190158,1712868639335,-500.0,0.00027397,2]
[322190161,1712868639344,-500.0,0.00027397,2]
[322190163,1712868639353,-500.0,0.00027397,2]
[322190164,1712868639362,-500.0,0.00027397,2]
[322190166,1712868639372,-511.67115905,0.00027397,2]
[322190168,1712868639381,-500.0,0.00027397,2]
[322190171,1712868639391,-500.0,0.00027397,2]
[322190173,1712868639400,-500.0,0.00027397,2]
[322190185,1712868639506,-500.0,0.00027397,2]
[322190187,1712868639516,-500.0,0.00027397,2]
[322190189,1712868639525,-500.0,0.00027397,2]
[322190191,1712868639535,-500.0,0.00027397,2]
[322190193,1712868639545,-500.0,0.00027397,2]
[322190195,1712868639554,-459.32823551,0.00027397,2]
[322190197,1712868639563,-500.0,0.00027397,2]
[322190199,1712868639574,-500.0,0.00027397,2]
[322190201,1712868639583,-500.0,0.00027397,2]
[322190204,1712868639593,-500.0,0.00027397,2]
[322190206,1712868639602,-500.0,0.00027397,2]
[322190208,1712868639611,-500.0,0.00027397,2]
[322190210,1712868639620,-500.0,0.00027397,2]
[322190212,1712868639631,-500.0,0.00027397,2]
[322190214,1712868639640,-500.0,0.00027397,2]
[322190216,1712868639649,-500.0,0.00027397,2]
[322190218,1712868639658,-516.65577381,0.00027397,2]
[322190220,1712868639666,-500.0,0.00027397,2]
[322190222,1712868639675,-1266.28,0.00027397,2]
[322190224,1712868639684,-500.0,0.00027397,2]
[322190227,1712868639693,-2184.49,0.00027397,2]
[322190229,1712868639702,-500.0,0.00027397,2]
[322190231,1712868639711,-500.0,0.00027397,2]
[322190233,1712868639720,-554.4450094,0.00027397,2]
[322190235,1712868639728,-500.0,0.00027397,2]
[322190236,1712868639737,-500.0,0.00027397,2]
[322190239,1712868639747,-500.0,0.00027397,2]
[322190241,1712868639756,-500.0,0.00027397,2]
[322190242,1712868639765,-500.0,0.00027397,2]
[322190244,1712868639774,-500.0,0.00027397,2]
[322190246,1712868639783,-500.0,0.00027397,2]
[322190248,1712868639792,-500.0,0.00027397,2]
[322190250,1712868639801,-506.30951657,0.00027397,2]
[322190253,1712868639811,-500.0,0.00027397,2]
[322190255,1712868639822,-500.0,0.00027397,2]
[322190257,1712868639831,-500.0,0.00027397,2]
[322190259,1712868639840,-500.0,0.00027397,2]
[322190261,1712868639849,-500.0,0.00027397,2]
[322190263,1712868639858,-508.37236142,0.00027397,2]
[322190265,1712868639867,-500.0,0.00027397,2]
[322190267,1712868639877,-500.0,0.00027397,2]
[322190269,1712868639885,-347.84297722,0.00027397,2]
[322190270,1712868639895,-511.51799614,0.00027397,2]
[322190273,1712868639904,-500.0,0.00027397,2]
[322190274,1712868639913,-500.0,0.00027397,2]
[322190277,1712868639923,-500.0,0.00027397,2]
[322190279,1712868639932,-500.0,0.00027397,2]
[322190281,1712868639941,-500.0,0.00027397,2]
[322190283,1712868639951,-503.29201479,0.00027397,2]
[322190285,1712868639959,-500.0,0.00027397,2]
[322190287,1712868639968,-500.0,0.00027397,2]
[322190289,1712868639979,-1199.13,0.00027397,2]
[322190291,1712868639990,-500.0,0.00027397,2]
[322190293,1712868639999,-500.0,0.00027397,2]
[322190294,1712868640010,-500.0,0.00027397,2]
[322190297,1712868640020,-500.0,0.00027397,2]
[322190299,1712868640029,-1362.0,0.00027397,2]
[322190301,1712868640038,-564.24993462,0.00027397,2]
[322190303,1712868640047,-500.0,0.00027397,2]
[322190305,1712868640059,-500.0,0.00027397,2]
[322190307,1712868640069,-500.0,0.00027397,2]
[322190309,1712868640078,-5970.48,0.00027397,2]
[322190311,1712868640087,-500.0,0.00027397,2]
[322190313,1712868640096,-423.09058609,0.00027397,2]
[322190315,1712868640105,-500.0,0.00027397,2]
[322190317,1712868640115,-500.0,0.00027397,2]
[322190319,1712868640124,-500.0,0.00027397,2]
[322190321,1712868640133,-500.0,0.00027397,2]
[322190323,1712868640142,-3439.98,0.00027397,2]
[322190325,1712868640151,-500.0,0.00027397,2]
[322190327,1712868640159,-513.50932358,0.00027397,2]
[322190329,1712868640168,-500.0,0.00027397,2]
[322190331,1712868640177,-500.0,0.00027397,2]
[322190333,1712868640187,-718.91,0.00027397,2]
[322190334,1712868640196,-500.0,0.00027397,2]
[322190336,1712868640205,-500.0,0.00027397,2]
[322190338,1712868640215,-740.54,0.00027397,2]
[322190341,1712868640226,-1443.39,0.00027397,2]
[322190343,1712868640235,-506.19657006,0.00027397,2]
[322190344,1712868640244,-500.0,0.00027397,2]
[322190347,1712868640253,-500.0,0.00027397,2]
[322190349,1712868640263,-2871.56,0.00027397,2]
[322190350,1712868640271,-500.0,0.00027397,2]
[322190352,1712868640280,-505.17643698,0.00027397,2]
[322190354,1712868640289,-509.56425413,0.00027397,2]
[322190356,1712868640299,-500.0,0.00027397,2]
[322190359,1712868640308,-2435.76,0.00027397,2]
[322190360,1712868640319,-500.0,0.00027397,2]
[322190363,1712868640328,-667.15,0.00027397,2]
[322190365,1712868640338,-500.0,0.00027397,2]
[322190367,1712868640347,-582.07,0.00027397,2]
[322190369,1712868640356,-500.0,0.00027397,2]
[322190371,1712868640365,-1320.87,0.00027397,2]
[322190373,1712868640375,-1413.84,0.00027397,2]
[322190375,1712868640384,-500.0,0.00027397,2]
[322190377,1712868640393,-510.33,0.00027397,2]
[322190379,1712868640402,-500.0,0.00027397,2]
[322190381,1712868640411,-500.0,0.00027397,2]
[322190383,1712868640420,-500.0,0.00027397,2]
[322190385,1712868640429,-500.0,0.00027397,2]
[322190387,1712868640438,-630.59,0.00027397,2]
[322190388,1712868640447,-300.0,0.00027397,2]
[322190390,1712868640456,-500.0,0.00027397,2]
[322190392,1712868640465,-500.0,0.00027397,2]
[322190394,1712868640474,-583.87,0.00027397,2]
[322190396,1712868640483,-500.0,0.00027397,2]
[322190399,1712868640492,-500.0,0.00027397,2]
[322190401,1712868640501,-13597.45,0.00027397,2]
[322190403,1712868640510,-573.73,0.00027397,2]
[322190405,1712868640519,-500.0,0.00027397,2]
[322190406,1712868640528,-507.03594079,0.00027397,2]
[322190408,1712868640537,-1080.03,0.00027397,2]
[322190411,1712868640547,-500.0,0.00027397,2]
[322190413,1712868640556,-500.0,0.00027397,2]
[322190415,1712868640566,-500.0,0.00027397,2]
[322190417,1712868640576,-615.72,0.00027397,2]
[322190419,1712868640585,-500.0,0.00027397,2]
[322190421,1712868640594,-500.0,0.00027397,2]
[322190423,1712868640603,-875.26,0.00027397,2]
[322190425,1712868640612,-331.51454962,0.00027397,2]
[322190427,1712868640621,-500.0,0.00027397,2]
[322190429,1712868640631,-500.0,0.00027397,2]
[322190431,1712868640640,-500.0,0.00027397,2]
[322190433,1712868640649,-2831.75,0.00027397,2]
[322190435,1712868640658,-757.76,0.00027397,2]
[322190437,1712868640666,-500.0,0.00027397,2]
[322190439,1712868640675,-1004.3,0.00027397,2]
[322190441,1712868640684,-500.0,0.00027397,2]
[322190443,1712868640693,-500.0,0.00027397,2]
[322190445,1712868640702,-500.0,0.00027397,2]
[322190447,1712868640711,-1977.45,0.00027397,2]
[322190449,1712868640720,-538.94,0.00027397,2]
[322190451,1712868640729,-500.0,0.00027397,2]
[322190453,1712868640737,-500.0,0.00027397,2]
[322190455,1712868640746,-500.0,0.00027397,2]
[322190457,1712868640755,-500.0,0.00027397,2]
[322190459,1712868640764,-500.0,0.00027397,2]
[322190461,1712868640773,-3888.25,0.00027397,2]
[322190463,1712868640782,-500.0,0.00027397,2]
[322190465,1712868640791,-878.81,0.00027397,2]
[322190467,1712868640800,-1103.84,0.00027397,2]
[322190469,1712868640809,-500.0,0.00027397,2]
[322190471,1712868640820,-798.8,0.00027397,2]
[322190472,1712868640829,-500.0,0.00027397,2]
[322190474,1712868640838,-1986.77,0.00027397,2]
[322190476,1712868640849,-166.666666,0.00027397,2]
[322190477,1712868640858,-160.38067626,0.00027413,2]
[322190478,1712868640867,-160.38067626,0.00027557,2]
[322190479,1712868640876,-156.84177265,0.00027669,2]
[322190480,1712868640885,-500.0,0.00027669,2]
[322190481,1712868640893,-500.0,0.00027669,2]
[322190482,1712868640902,-12262.54,0.00027669,2]
[322190483,1712868640911,-500.0,0.0002767,2]
[322190484,1712868640921,-500.0,0.0002767,2]
[322190485,1712868640930,-500.0,0.0002767,2]
[322190486,1712868640939,-500.0,0.00027671,2]
[322190487,1712868640948,-694.55,0.00027671,2]
[322190488,1712868640958,-500.0,0.00027671,2]
[322190489,1712868640967,-500.0,0.00027671,2]
[322190490,1712868640980,-500.0,0.00027671,2]
[322190491,1712868640991,-428.44114347,0.00027671,2]
[322190492,1712868641001,-660.98,0.00027671,2]
[322190493,1712868641011,-1380.38,0.00027671,2]
[322190494,1712868641020,-500.0,0.00027671,2]
[322190495,1712868641031,-500.0,0.00027671,2]
[322190496,1712868641039,-500.0,0.00027671,2]
[322190497,1712868641048,-576.3008286,0.00027671,2]
[322190498,1712868641057,-500.0,0.00027671,2]
[322190499,1712868641066,-500.0,0.00027671,2]
[322190500,1712868641075,-500.0,0.00027671,2]
[322190502,1712868641084,-500.0,0.00027671,2]
[322190504,1712868641093,-500.0,0.00027671,2]
[322190506,1712868641102,-160.3891313,0.00027671,2]
[322190508,1712868641111,-500.0,0.00027671,2]
[322190510,1712868641120,-500.0,0.00027671,2]
[322190512,1712868641129,-500.0,0.00027671,2]
[322190514,1712868641138,-1266.28,0.00027671,2]
[322190516,1712868641148,-500.0,0.00027671,2]
[322190518,1712868641157,-2184.49,0.00027671,2]
[322190520,1712868641166,-500.0,0.00027671,2]
[322190521,1712868641176,-500.0,0.00027671,2]
[322190523,1712868641185,-500.0,0.00027671,2]
[322190525,1712868641194,-537.78369717,0.00027671,2]
[322190527,1712868641204,-500.0,0.00027671,2]
[322190529,1712868641213,-500.0,0.00027671,2]
[322190531,1712868641222,-500.0,0.00027671,2]
[322190533,1712868641231,-500.0,0.00027671,2]
[322190535,1712868641241,-500.0,0.00027671,2]
[322190537,1712868641252,-500.0,0.00027671,2]
[322190539,1712868641262,-510.10060838,0.00027671,2]
[322190541,1712868641271,-500.0,0.00027671,2]
[322190543,1712868641280,-500.0,0.00027671,2]
[322190545,1712868641290,-541.32555737,0.00027671,2]
[322190547,1712868641299,-500.0,0.00027671,2]
[322190549,1712868641309,-500.0,0.00027671,2]
[322190552,1712868641319,-507.05941303,0.00027671,2]
[322190553,1712868641328,-500.0,0.00027671,2]
[322190555,1712868641337,-500.0,0.00027671,2]
[322190557,1712868641350,-500.0,0.00027671,2]
[322190559,1712868641359,-500.0,0.00027671,2]
[322190561,1712868641368,-370.34944153,0.00027671,2]
[322190564,1712868641377,-1199.13,0.00027671,2]
[322190565,1712868641386,-505.052654,0.00027671,2]
[322190567,1712868641395,-440.23207232,0.00027671,2]
[322190569,1712868641404,-500.0,0.00027671,2]
[322190571,1712868641414,-1362.0,0.00027671,2]
[322190573,1712868641424,-500.0,0.00027671,2]
[322190575,1712868641433,-5970.48,0.00027671,2]
[322190577,1712868641442,-500.0,0.00027671,2]
[322190579,1712868641451,-500.0,0.00027671,2]
[322190582,1712868641461,-500.0,0.00027671,2]
[322190584,1712868641470,-500.0,0.00027671,2]
[322190585,1712868641479,-500.0,0.00027671,2]
[322190587,1712868641488,-3439.98,0.00027671,2]
[322190589,1712868641497,-606.73,0.00027671,2]
[322190591,1712868641507,-500.0,0.00027671,2]
[322190593,1712868641516,-500.0,0.00027671,2]
[322190596,1712868641525,-718.91,0.00027671,2]
[322190598,1712868641535,-500.0,0.00027671,2]
[322190600,1712868641545,-500.0,0.00027671,2]
[322190601,1712868641556,-740.54,0.00027671,2]
[322190612,1712868641635,-1443.39,0.00027671,2]
[322190614,1712868641653,-500.0,0.00027671,2]
[322190616,1712868641663,-1235.81049524,0.00027671,2]
[322190623,1712868641717,-689.93313125,0.00027671,2]
[322191708,1712868655354,284.61768547,0.00024363,2]
[322191775,1712868665142,2487.72554047,0.00022018,2]
[322191776,1712868665169,128.36074328,0.00022018,2]
[322191779,1712868705874,284.61768547,0.00022018,2]
[322191780,1712868719866,284.61768547,0.00022018,2]
[322191781,1712868737870,284.61768547,0.00022018,2]
[322191783,1712868753868,215.4481866,0.00022018,2]
[322191856,1712869633118,-154.82968734,0.0002423,2]
[322191857,1712869633139,-1101.30312655,0.00024231,2]
[322191858,1712869635086,-1516.02663077,0.00024231,2]
[322191859,1712869635107,-2094.14637252,0.00024232,2]
[322191860,1712869635129,-300.0,0.00024232,2]
[322191861,1712869635150,-300.0,0.00024232,2]
[322191862,1712869635171,-158.96790869,0.00024253,2]
[322191863,1712869635191,-200.39338759,0.00024255,2]
[322191864,1712869635210,-217.92778221,0.00024363,2]
[322191865,1712869635230,-36260.39739601,0.00024743,2]
[322191868,1712869695967,171.815789,0.00023498,2]
[322191874,1712869748369,-3719.84092639,0.00024741,2]
[322191875,1712869748393,-300.0,0.00024742,2]
[322191876,1712869748417,-300.0,0.00024742,2]
[322191877,1712869748438,-1971.74224481,0.00024742,2]
[322191878,1712869748564,-22747.85565067,0.00024743,2]
[322191879,1712869748586,-10611.3378454,0.00024744,2]
[322191880,1712869748609,-996.61026472,0.00024751,2]
[322191881,1712869748631,-1979.7429957,0.00024851,2]
[322191882,1712869748653,-220.25791032,0.00025,2]
[322191883,1712869748676,-158.96790865,0.0002522,2]
[322191884,1712869748697,-3816.51542658,0.00025571,2]
[322191885,1712869748718,-150.0,0.00025571,2]
[322191886,1712869748741,-164.048687,0.00025906,2]
[322191887,1712869748764,-158.96790865,0.00026186,2]
[322191888,1712869748784,-624.36279286,0.00026286,2]
[322191889,1712869748806,-420.0,0.00026811,2]
[322191890,1712869748828,-158.96790865,0.00027153,2]
[322191891,1712869748849,-420.0,0.00027216,2]
[322191893,1712869784261,261.60995491,0.00022651,2]
[322191905,1712869832575,-449.67037149,0.00027391,2]
[322191919,1712869832841,-3276.78837516,0.00027391,2]
[322191921,1712869832851,-300.0,0.00027394,2]
[322191923,1712869832860,-300.0,0.00027394,2]
[322191925,1712869832869,-343.0,0.00027395,2]
[322191927,1712869832879,-154.99990716,0.00027395,2]
[322191929,1712869832888,-771.93013671,0.00027395,2]
[322191932,1712869832900,-1320.61027825,0.00027395,2]
[322191934,1712869832909,-156.84177265,0.00027396,2]
[322191936,1712869832917,-372.5479491,0.00027396,2]
[322191938,1712869832930,-48.83348372,0.00027396,2]
[322191940,1712869832939,-500.0,0.00027396,2]
[322191942,1712869832949,-398.81309275,0.00027396,2]
[322191944,1712869832958,-355.4988321,0.00027396,2]
[322191946,1712869832967,-500.0,0.00027396,2]
[322191948,1712869832976,-478.43742362,0.00027396,2]
[322191950,1712869832985,-500.0,0.00027396,2]
[322191952,1712869832994,-195.79722904,0.00027396,2]
[322191954,1712869833003,-209.84313548,0.00027396,2]
[322191956,1712869833012,-588.257107,0.00027396,2]
[322191958,1712869833021,-1021.40968241,0.00027396,2]
[322191960,1712869833030,-687.07,0.00027397,2]
[322191962,1712869833039,-500.0,0.00027397,2]
[322191964,1712869833048,-500.0,0.00027397,2]
[322191966,1712869833057,-500.0,0.00027397,2]
[322191968,1712869833067,-160.3891313,0.00027397,2]
[322191970,1712869833076,-500.0,0.00027397,2]
[322191972,1712869833085,-500.0,0.00027397,2]
[322191974,1712869833095,-500.0,0.00027397,2]
[322191976,1712869833104,-500.0,0.00027397,2]
[322191978,1712869833113,-2110.35,0.00027397,2]
[322191980,1712869833121,-500.0,0.00027397,2]
[322191982,1712869833130,-500.0,0.00027397,2]
[322191984,1712869833140,-537.78369717,0.00027397,2]
[322191986,1712869833149,-510.10060838,0.00027397,2]
[322191988,1712869833158,-500.0,0.00027397,2]
[322191990,1712869833167,-500.0,0.00027397,2]
[322191992,1712869833176,-541.32555737,0.00027397,2]
[322191994,1712869833186,-500.0,0.00027397,2]
[322191996,1712869833194,-1977.45,0.00027397,2]
[322191998,1712869833203,-500.0,0.00027397,2]
[322192000,1712869833212,-798.8,0.00027397,2]
[322192001,1712869833221,-500.0,0.00027397,2]
[322192002,1712869833230,-355.1193172,0.00027397,2]
[322192003,1712869833239,-500.0,0.00027397,2]
[322192004,1712869833248,-1322.86,0.00027397,2]
[322192005,1712869833257,-500.0,0.00027397,2]
[322192006,1712869833266,-503.29201479,0.00027397,2]
[322192007,1712869833276,-500.0,0.00027397,2]
[322192008,1712869833285,-500.0,0.00027397,2]
[322192009,1712869833294,-564.24993462,0.00027397,2]
[322192010,1712869833304,-500.0,0.00027397,2]
[322192011,1712869833315,-500.0,0.00027397,2]
[322192012,1712869833323,-500.0,0.00027397,2]
[322192013,1712869833333,-500.0,0.00027397,2]
[322192014,1712869833342,-500.0,0.00027397,2]
[322192015,1712869833352,-500.0,0.00027397,2]
[322192016,1712869833363,-500.0,0.00027397,2]
[322192017,1712869833373,-500.0,0.00027397,2]
[322192018,1712869833382,-500.0,0.00027397,2]
[322192019,1712869833392,-500.0,0.00027397,2]
[322192020,1712869833401,-500.0,0.00027397,2]
[322192021,1712869833410,-500.0,0.00027397,2]
[322192022,1712869833420,-423.09058609,0.00027397,2]
[322192023,1712869833431,-500.0,0.00027397,2]
[322192024,1712869833441,-506.19657006,0.00027397,2]
[322192025,1712869833451,-509.56425413,0.00027397,2]
[322192026,1712869833462,-500.0,0.00027397,2]
[322192028,1712869833473,-500.0,0.00027397,2]
[322192030,1712869833488,-500.0,0.00027397,2]
[322192032,1712869833497,-500.0,0.00027397,2]
[322192034,1712869833506,-500.0,0.00027397,2]
[322192036,1712869833515,-500.0,0.00027397,2]
[322192038,1712869833524,-500.0,0.00027397,2]
[322192040,1712869833534,-500.0,0.00027397,2]
[322192042,1712869833543,-500.0,0.00027397,2]
[322192044,1712869833552,-500.0,0.00027397,2]
[322192046,1712869833568,-500.0,0.00027397,2]
[322192048,1712869833579,-500.0,0.00027397,2]
[322192050,1712869833588,-583.87,0.00027397,2]
[322192052,1712869833597,-500.0,0.00027397,2]
[322192054,1712869833607,-500.0,0.00027397,2]
[322192056,1712869833617,-300.0,0.00027397,2]
[322192059,1712869833626,-500.0,0.00027397,2]
[322192061,1712869833635,-1266.28,0.00027397,2]
[322192063,1712869833646,-549.51197242,0.00027397,2]
[322192065,1712869833656,-500.0,0.00027397,2]
[322192067,1712869833665,-500.0,0.00027397,2]
[322192069,1712869833674,-500.0,0.00027397,2]
[322192071,1712869833683,-554.4450094,0.00027397,2]
[322192073,1712869833692,-500.0,0.00027397,2]
[322192075,1712869833701,-500.0,0.00027397,2]
[322192077,1712869833710,-490.0,0.00027397,2]
[322192079,1712869833719,-500.0,0.00027397,2]
[322192081,1712869833728,-503.73532672,0.00027397,2]
[322192083,1712869833737,-500.0,0.00027397,2]
[322192085,1712869833746,-500.0,0.00027397,2]
[322192087,1712869833755,-500.0,0.00027397,2]
[322192088,1712869833764,-500.0,0.00027397,2]
[322192090,1712869833773,-500.0,0.00027397,2]
[322192092,1712869833782,-500.0,0.00027397,2]
[322192094,1712869833791,-500.0,0.00027397,2]
[322192096,1712869833800,-1199.13,0.00027397,2]
[322192098,1712869833810,-500.0,0.00027397,2]
[322192100,1712869833819,-1362.0,0.00027397,2]
[322192102,1712869833828,-2220.34,0.00027397,2]
[322192104,1712869833837,-500.0,0.00027397,2]
[322192106,1712869833846,-3598.28,0.00027397,2]
[322192108,1712869833854,-500.0,0.00027397,2]
[322192119,1712869833947,-757.32,0.00027397,2]
[322192120,1712869833957,-500.0,0.00027397,2]
[322192121,1712869833965,-500.0,0.00027397,2]
[322192122,1712869833974,-500.0,0.00027397,2]
[322192123,1712869833984,-500.0,0.00027397,2]
[322192124,1712869833993,-6293.62,0.00027397,2]
[322192126,1712869834001,-804.19,0.00027397,2]
[322192128,1712869834011,-500.0,0.00027397,2]
[322192130,1712869834020,-513.50932358,0.00027397,2]
[322192132,1712869834029,-500.0,0.00027397,2]
[322192134,1712869834039,-500.0,0.00027397,2]
[322192136,1712869834048,-500.0,0.00027397,2]
[322192138,1712869834057,-500.0,0.00027397,2]
[322192140,1712869834066,-500.0,0.00027397,2]
[322192141,1712869834075,-718.91,0.00027397,2]
[322192143,1712869834084,-500.0,0.00027397,2]
[322192145,1712869834093,-500.0,0.00027397,2]
[322192147,1712869834102,-500.0,0.00027397,2]
[322192149,1712869834111,-505.17643698,0.00027397,2]
[322192151,1712869834120,-500.0,0.00027397,2]
[322192153,1712869834128,-1443.39,0.00027397,2]
[322192155,1712869834138,-500.0,0.00027397,2]
[322192157,1712869834147,-719.4,0.00027397,2]
[322192159,1712869834156,-500.0,0.00027397,2]
[322192161,1712869834166,-500.0,0.00027397,2]
[322192163,1712869834175,-500.0,0.00027397,2]
[322192165,1712869834185,-2990.2,0.00027397,2]
[322192168,1712869834195,-500.0,0.00027397,2]
[322192170,1712869834205,-677.88,0.00027397,2]
[322192171,1712869834215,-500.0,0.00027397,2]
[322192173,1712869834225,-500.0,0.00027397,2]
[322192175,1712869834235,-500.0,0.00027397,2]
[322192177,1712869834247,-1413.84,0.00027397,2]
[322192179,1712869834257,-2563.95,0.00027397,2]
[322192181,1712869834267,-500.0,0.00027397,2]
[322192183,1712869834276,-500.0,0.00027397,2]
[322192185,1712869834286,-500.0,0.00027397,2]
[322192187,1712869834295,-500.0,0.00027397,2]
[322192189,1712869834304,-1395.58,0.00027397,2]
[322192191,1712869834313,-500.0,0.00027397,2]
[322192193,1712869834322,-500.0,0.00027397,2]
[322192195,1712869834331,-259.92770034,0.00027397,2]
[322192197,1712869834341,-500.0,0.00027397,2]
[322192199,1712869834350,-158.09608025,0.00027397,2]
[322192200,1712869834361,-500.0,0.00027397,2]
[322192202,1712869834370,-500.0,0.00027397,2]
[322192203,1712869834379,-582.07,0.00027397,2]
[322192204,1712869834388,-559.92,0.00027397,2]
[322192205,1712869834398,-507.03594079,0.00027397,2]
[322192206,1712869834407,-500.0,0.00027397,2]
[322192207,1712869834416,-500.0,0.00027397,2]
[322192208,1712869834425,-500.0,0.00027397,2]
[322192209,1712869834437,-500.0,0.00027397,2]
[322192210,1712869834447,-500.0,0.00027397,2]
[322192211,1712869834456,-6616.36401643,0.00027397,2]
[322192217,1712869838378,-3719.84092639,0.0002739,2]
[322192218,1712869838389,-6981.08598357,0.00027397,2]
[322192219,1712869838399,-500.0,0.00027397,2]
[322192220,1712869838408,-247.55776255,0.00027397,2]
[322192221,1712869838417,-500.0,0.00027397,2]
[322192222,1712869838427,-986.08,0.00027397,2]
[322192223,1712869838440,-500.0,0.00027397,2]
[322192224,1712869838450,-1135.46,0.00027397,2]
[322192225,1712869838460,-500.0,0.00027397,2]
[322192226,1712869838469,-757.76,0.00027397,2]
[322192227,1712869838480,-500.0,0.00027397,2]
[322192228,1712869838489,-563.21,0.00027397,2]
[322192229,1712869838500,-3089.09,0.00027397,2]
[322192230,1712869838511,-586.88,0.00027397,2]
[322192231,1712869838521,-1130.25,0.00027397,2]
[322192232,1712869838533,-500.0,0.00027397,2]